Workbook

Sheet Declaraţie de flux de numerar
B1: Flux numerar Declaraţie
B3: Anul fiscal începe: | D3: (Înainte de) pornire | E3: =UPPER(TEXT(DatăÎnceputAnFiscal,"mmm")) -> IAN | F3: =UPPER(TEXT(EOMONTH(DatăÎnceputAnFiscal,1),"mmm")) -> FEB | G3: =UPPER(TEXT(EOMONTH(DatăÎnceputAnFiscal,2),"mmm")) -> MAR | H3: =UPPER(TEXT(EOMONTH(DatăÎnceputAnFiscal,3),"mmm")) -> APR | I3: =UPPER(TEXT(EOMONTH(DatăÎnceputAnFiscal,4),"mmm")) -> MAI | J3: =UPPER(TEXT(EOMONTH(DatăÎnceputAnFiscal,5),"mmm")) -> IUN | K3: =UPPER(TEXT(EOMONTH(DatăÎnceputAnFiscal,6),"mmm")) -> IUL | L3: =UPPER(TEXT(EOMONTH(DatăÎnceputAnFiscal,7),"mmm")) -> AUG | M3: =UPPER(TEXT(EOMONTH(DatăÎnceputAnFiscal,8),"mmm")) -> SEP | N3: =UPPER(TEXT(EOMONTH(DatăÎnceputAnFiscal,9),"mmm")) -> OCT | O3: =UPPER(TEXT(EOMONTH(DatăÎnceputAnFiscal,10),"mmm")) -> NOV | P3: =UPPER(TEXT(EOMONTH(DatăÎnceputAnFiscal,11),"mmm")) -> DEC | R3: Total
B4: 2012-01-05 | D4: EST | E4: =DatăÎnceputAnFiscal -> 2012-01-05 | F4: =EOMONTH(E4,0)+DAY(DatăÎnceputAnFiscal) -> 2012-02-05 | G4: =EOMONTH(F4,0)+DAY(DatăÎnceputAnFiscal) -> 2012-03-05 | H4: =EOMONTH(G4,0)+DAY(DatăÎnceputAnFiscal) -> 2012-04-05 | I4: =EOMONTH(H4,0)+DAY(DatăÎnceputAnFiscal) -> 2012-05-05 | J4: =EOMONTH(I4,0)+DAY(DatăÎnceputAnFiscal) -> 2012-06-05 | K4: =EOMONTH(J4,0)+DAY(DatăÎnceputAnFiscal) -> 2012-07-05 | L4: =EOMONTH(K4,0)+DAY(DatăÎnceputAnFiscal) -> 2012-08-05 | M4: =EOMONTH(L4,0)+DAY(DatăÎnceputAnFiscal) -> 2012-09-05 | N4: =EOMONTH(M4,0)+DAY(DatăÎnceputAnFiscal) -> 2012-10-05 | O4: =EOMONTH(N4,0)+DAY(DatăÎnceputAnFiscal) -> 2012-11-05 | P4: =EOMONTH(O4,0)+DAY(DatăÎnceputAnFiscal) -> 2012-12-05 | R4: Element EST
B6: Numerar în casă (la începutul lunii) | D6: 100 | E6: =D48 -> 100 | F6: =E48 -> -125 | G6: 45 | H6: -1 | I6: 224 | J6: 269 | K6: 269 | L6: 269 | M6: 269 | N6: 269 | O6: 269 | P6: 269 | R6: =P6 -> 269
B8: Intrări în numerar
B9: Vânzări în numerar | E9: 125 | F9: 120 | G9: 130 | H9: 100 | R9: =SUM(IntrăriNumerar[[#This Row],[Perioada 0]:[Perioada 12]]) -> 475
B10: Conturi CR | H10: 75 | I10: 45 | R10: =SUM(IntrăriNumerar[[#This Row],[Perioada 0]:[Perioada 12]]) -> 120
B11: Împrumuturi sau alte injecţii de numerar | E11: 50 | F11: 50 | G11: 50 | H11: 50 | R11: =SUM(IntrăriNumerar[[#This Row],[Perioada 0]:[Perioada 12]]) -> 200
B12: Total | D12: =SUBTOTAL(109,IntrăriNumerar[Perioada 0]) -> 0 | E12: =SUBTOTAL(109,IntrăriNumerar[Perioada 1]) -> 175 | F12: =SUBTOTAL(109,IntrăriNumerar[Perioada 2]) -> 170 | G12: =SUBTOTAL(109,IntrăriNumerar[Perioada 3]) -> 180 | H12: =SUBTOTAL(109,IntrăriNumerar[Perioada 4]) -> 225 | I12: =SUBTOTAL(109,IntrăriNumerar[Perioada 5]) -> 45 | J12: =SUBTOTAL(109,IntrăriNumerar[Perioada 6]) -> 0 | K12: =SUBTOTAL(109,IntrăriNumerar[Perioada 7]) -> 0 | L12: =SUBTOTAL(109,IntrăriNumerar[Perioada 8]) -> 0 | M12: =SUBTOTAL(109,IntrăriNumerar[Perioada 9]) -> 0 | N12: =SUBTOTAL(109,IntrăriNumerar[Perioada 10]) -> 0 | O12: =SUBTOTAL(109,IntrăriNumerar[Perioada 11]) -> 0 | P12: =SUBTOTAL(109,IntrăriNumerar[Perioada 12]) -> 0 | R12: =SUBTOTAL(109,IntrăriNumerar[Total]) -> 795
B13: Total numerar disponibil (înainte de ieşirea în numerar) | D13: =D6+SUM(IntrăriNumerar[Perioada 0]) -> 100 | E13: =E6+SUM(IntrăriNumerar[Perioada 1]) -> 275 | F13: =F6+SUM(IntrăriNumerar[Perioada 2]) -> 45 | G13: =G6+SUM(IntrăriNumerar[Perioada 3]) -> 225 | H13: =H6+SUM(IntrăriNumerar[Perioada 4]) -> 224 | I13: =I6+SUM(IntrăriNumerar[Perioada 5]) -> 269 | J13: =J6+SUM(IntrăriNumerar[Perioada 6]) -> 269 | K13: =K6+SUM(IntrăriNumerar[Perioada 7]) -> 269 | L13: =L6+SUM(IntrăriNumerar[Perioada 8]) -> 269 | M13: =M6+SUM(IntrăriNumerar[Perioada 9]) -> 269 | N13: =N6+SUM(IntrăriNumerar[Perioada 10]) -> 269 | O13: =O6+SUM(IntrăriNumerar[Perioada 11]) -> 269 | P13: =P6+SUM(IntrăriNumerar[Perioada 12]) -> 269 | R13: =R6+SUM(IntrăriNumerar[Total]) -> 1064
B15: Ieşiri în numerar
B16: Achiziţii (mărfuri) | E16: 400 | G16: 226 | R16: =SUM(IeşiriNumerar[[#This Row],[Perioada 0]:[Perioada 12]]) -> 626
B17: Achiziţii (specificaţi) | R17: =SUM(IeşiriNumerar[[#This Row],[Perioada 0]:[Perioada 12]]) -> 0
B18: Achiziţii (specificaţi) | R18: =SUM(IeşiriNumerar[[#This Row],[Perioada 0]:[Perioada 12]]) -> 0
B19: Salarii brute (retragere exactă) | R19: =SUM(IeşiriNumerar[[#This Row],[Perioada 0]:[Perioada 12]]) -> 0
B20: Cheltuieli cu statele de plată (impozite etc.) | R20: =SUM(IeşiriNumerar[[#This Row],[Perioada 0]:[Perioada 12]]) -> 0
B21: Servicii externe | R21: =SUM(IeşiriNumerar[[#This Row],[Perioada 0]:[Perioada 12]]) -> 0
B22: Materiale (birou şi operare) | R22: =SUM(IeşiriNumerar[[#This Row],[Perioada 0]:[Perioada 12]]) -> 0
B23: Reparări şi întreţinere | R23: =SUM(IeşiriNumerar[[#This Row],[Perioada 0]:[Perioada 12]]) -> 0
B24: Publicitate | R24: =SUM(IeşiriNumerar[[#This Row],[Perioada 0]:[Perioada 12]]) -> 0
B25: Maşină, livrare şi călătorii | R25: =SUM(IeşiriNumerar[[#This Row],[Perioada 0]:[Perioada 12]]) -> 0
B26: Contabilitate şi juridic | R26: =SUM(IeşiriNumerar[[#This Row],[Perioada 0]:[Perioada 12]]) -> 0
B27: Chirie | R27: =SUM(IeşiriNumerar[[#This Row],[Perioada 0]:[Perioada 12]]) -> 0
B28: Telefon | R28: =SUM(IeşiriNumerar[[#This Row],[Perioada 0]:[Perioada 12]]) -> 0
B29: Utilităţi | R29: =SUM(IeşiriNumerar[[#This Row],[Perioada 0]:[Perioada 12]]) -> 0
B30: Asigurare | R30: =SUM(IeşiriNumerar[[#This Row],[Perioada 0]:[Perioada 12]]) -> 0
B31: Impozite (imobiliare etc.) | R31: =SUM(IeşiriNumerar[[#This Row],[Perioada 0]:[Perioada 12]]) -> 0
B32: Dobândă | R32: =SUM(IeşiriNumerar[[#This Row],[Perioada 0]:[Perioada 12]]) -> 0
B33: Alte cheltuieli (specificaţi) | R33: =SUM(IeşiriNumerar[[#This Row],[Perioada 0]:[Perioada 12]]) -> 0
B34: Altele (specificaţi) | R34: =SUM(IeşiriNumerar[[#This Row],[Perioada 0]:[Perioada 12]]) -> 0
B35: Altele (specificaţi) | R35: =SUM(IeşiriNumerar[[#This Row],[Perioada 0]:[Perioada 12]]) -> 0
B36: Diverse | R36: =SUM(IeşiriNumerar[[#This Row],[Perioada 0]:[Perioada 12]]) -> 0
B37: Total | D37: =SUBTOTAL(109,IeşiriNumerar[Perioada 0]) -> 0 | E37: =SUBTOTAL(109,IeşiriNumerar[Perioada 1]) -> 400 | F37: =SUBTOTAL(109,IeşiriNumerar[Perioada 2]) -> 0 | G37: =SUBTOTAL(109,IeşiriNumerar[Perioada 3]) -> 226 | H37: =SUBTOTAL(109,IeşiriNumerar[Perioada 4]) -> 0 | I37: =SUBTOTAL(109,IeşiriNumerar[Perioada 5]) -> 0 | J37: =SUBTOTAL(109,IeşiriNumerar[Perioada 6]) -> 0 | K37: =SUBTOTAL(109,IeşiriNumerar[Perioada 7]) -> 0 | L37: =SUBTOTAL(109,IeşiriNumerar[Perioada 8]) -> 0 | M37: =SUBTOTAL(109,IeşiriNumerar[Perioada 9]) -> 0 | N37: =SUBTOTAL(109,IeşiriNumerar[Perioada 10]) -> 0 | O37: =SUBTOTAL(109,IeşiriNumerar[Perioada 11]) -> 0 | P37: =SUBTOTAL(109,IeşiriNumerar[Perioada 12]) -> 0 | R37: =SUBTOTAL(109,IeşiriNumerar[Total]) -> 626
B39: Ieşiri în numerar (Non-Pamp;L)
B40: Plată principală împrumut | R40: =SUM(IeşiriNumerar2[[#This Row],[Perioada 0]:[Perioada 12]]) -> 0
B41: Achiziţie de capital (specificaţi) | R41: =SUM(IeşiriNumerar2[[#This Row],[Perioada 0]:[Perioada 12]]) -> 0
B42: Alte costuri de pornire | R42: =SUM(IeşiriNumerar2[[#This Row],[Perioada 0]:[Perioada 12]]) -> 0
B43: Rezervare şi/sau angajament scris | R43: =SUM(IeşiriNumerar2[[#This Row],[Perioada 0]:[Perioada 12]]) -> 0
B44: Retragere proprietar | R44: =SUM(IeşiriNumerar2[[#This Row],[Perioada 0]:[Perioada 12]]) -> 0
B45: Total | D45: =SUBTOTAL(109,IeşiriNumerar2[Perioada 0]) -> 0 | E45: =SUBTOTAL(109,IeşiriNumerar2[Perioada 1]) -> 0 | F45: =SUBTOTAL(109,IeşiriNumerar2[Perioada 2]) -> 0 | G45: =SUBTOTAL(109,IeşiriNumerar2[Perioada 3]) -> 0 | H45: =SUBTOTAL(109,IeşiriNumerar2[Perioada 4]) -> 0 | I45: =SUBTOTAL(109,IeşiriNumerar2[Perioada 5]) -> 0 | J45: =SUBTOTAL(109,IeşiriNumerar2[Perioada 6]) -> 0 | K45: =SUBTOTAL(109,IeşiriNumerar2[Perioada 7]) -> 0 | L45: =SUBTOTAL(109,IeşiriNumerar2[Perioada 8]) -> 0 | M45: =SUBTOTAL(109,IeşiriNumerar2[Perioada 9]) -> 0 | N45: =SUBTOTAL(109,IeşiriNumerar2[Perioada 10]) -> 0 | O45: =SUBTOTAL(109,IeşiriNumerar2[Perioada 11]) -> 0 | P45: =SUBTOTAL(109,IeşiriNumerar2[Perioada 12]) -> 0 | R45: =SUBTOTAL(109,IeşiriNumerar2[Total]) -> 0
B46: Total ieşiri în numerar | D46: =SUM(IeşiriNumerar[Perioada 0],IeşiriNumerar2[Perioada 0]) -> 0 | E46: =SUM(IeşiriNumerar[Perioada 1],IeşiriNumerar2[Perioada 1]) -> 400 | F46: =SUM(IeşiriNumerar[Perioada 2],IeşiriNumerar2[Perioada 2]) -> 0 | G46: =SUM(IeşiriNumerar[Perioada 3],IeşiriNumerar2[Perioada 3]) -> 226 | H46: =SUM(IeşiriNumerar[Perioada 4],IeşiriNumerar2[Perioada 4]) -> 0 | I46: =SUM(IeşiriNumerar[Perioada 5],IeşiriNumerar2[Perioada 5]) -> 0 | J46: =SUM(IeşiriNumerar[Perioada 6],IeşiriNumerar2[Perioada 6]) -> 0 | K46: =SUM(IeşiriNumerar[Perioada 7],IeşiriNumerar2[Perioada 7]) -> 0 | L46: =SUM(IeşiriNumerar[Perioada 8],IeşiriNumerar2[Perioada 8]) -> 0 | M46: =SUM(IeşiriNumerar[Perioada 9],IeşiriNumerar2[Perioada 9]) -> 0 | N46: =SUM(IeşiriNumerar[Perioada 10],IeşiriNumerar2[Perioada 10]) -> 0 | O46: =SUM(IeşiriNumerar[Perioada 11],IeşiriNumerar2[Perioada 11]) -> 0 | P46: =SUM(IeşiriNumerar[Perioada 12],IeşiriNumerar2[Perioada 12]) -> 0 | R46: =SUM(IeşiriNumerar[Total],IeşiriNumerar2[Total]) -> 626
B48: Situaţie numerar (la sfârşitul lunii) | D48: =D13-D46 -> 100 | E48: -125 | F48: 45 | G48: -1 | H48: 224 | I48: 269 | J48: 269 | K48: 269 | L48: 269 | M48: 269 | N48: 269 | O48: 269 | P48: 269 | R48: =R13-R46 -> 438
